[Event "*** Titled Tuesday Blitz"]
[Site "Chess.com"]
[Date "2020.02.04"]
[Round "3"]
[White "Parhamov"]
[Black "Hydrargyrum_Girl"]
[Result "1-0"]
[WhiteElo "2997"]
[BlackElo "2173"]
[TimeControl "180+2"]
[EndTime "9:36:54 PST"]
[Termination "Parhamov won by checkmate"]

1. e3 {[%clk 0:02:17]} 1... e5 {[%clk 0:02:57.2]} 2. Be2 {[%clk 0:02:18.1]} 2...
d5 {[%clk 0:02:57.1]} 3. d4 {[%clk 0:02:19]} 3... exd4 {[%clk 0:02:56.3]} 4.
Qxd4 {[%clk 0:02:18.4]} 4... Nc6 {[%clk 0:02:55.8]} 5. Bb5 {[%clk 0:02:03]} 5...
Nf6 {[%clk 0:02:49.6]} 6. Nf3 {[%clk 0:01:59.9]} 6... Be7 {[%clk 0:02:31.5]} 7.
b3 {[%clk 0:02:00.6]} 7... O-O {[%clk 0:02:30.7]} 8. Bxc6 {[%clk 0:01:59.3]}
8... bxc6 {[%clk 0:02:31.1]} 9. Bb2 {[%clk 0:01:59.1]} 9... Ba6 {[%clk
0:02:21.6]} 10. Nbd2 {[%clk 0:01:52.7]} 10... c5 {[%clk 0:01:51.6]} 11. Qf4
{[%clk 0:01:52.7]} 11... Re8 {[%clk 0:01:32.6]} 12. O-O-O {[%clk 0:01:53.5]}
12... c4 {[%clk 0:01:15]} 13. e4 {[%clk 0:01:43.5]} 13... cxb3 {[%clk
0:00:55.7]} 14. axb3 {[%clk 0:01:42.4]} 14... c6 {[%clk 0:00:24]} 15. g4 {[%clk
0:01:18.6]} 15... Qa5 {[%clk 0:00:20.9]} 16. g5 {[%clk 0:01:18]} 16... Nxe4
{[%clk 0:00:20.5]} 17. Nxe4 {[%clk 0:01:19.4]} 17... dxe4 {[%clk 0:00:22.4]} 18.
Ne5 {[%clk 0:01:20.7]} 18... f6 {[%clk 0:00:19.4]} 19. gxf6 {[%clk 0:01:18.7]}
19... Bxf6 {[%clk 0:00:21.3]} 20. Nxc6 {[%clk 0:01:10.2]} 20... Bxb2+ {[%clk
0:00:18.1]} 21. Kxb2 {[%clk 0:01:10.5]} 21... Qc5 {[%clk 0:00:16.6]} 22. Rd7
{[%clk 0:01:10.3]} 22... Rf8 {[%clk 0:00:12.9]} 23. Qg4 {[%clk 0:01:09]} 23...
g6 {[%clk 0:00:10.9]} 24. Qe6+ {[%clk 0:01:07.7]} 24... Kh8 {[%clk 0:00:10.4]}
25. Ne5 {[%clk 0:01:08.6]} 25... Rae8 {[%clk 0:00:03.1]} 26. Nxg6+ {[%clk
0:01:09.5]} 26... hxg6 {[%clk 0:00:02.5]} 27. Qxg6 {[%clk 0:01:07.5]} 27... Qe5+
{[%clk 0:00:03.4]} 28. Kb1 {[%clk 0:01:08.8]} 28... Re6 {[%clk 0:00:02.1]} 29.
Qh7# {[%clk 0:01:07.7]} 1-0

[Event "*** Titled Tuesday Blitz"]
[Site "Chess.com"]
[Date "2020.02.04"]
[Round "3"]
[White "Ariadna_Atreides"]
[Black "Ceejay271"]
[Result "1-0"]
[WhiteElo "2066"]
[BlackElo "2282"]
[TimeControl "180+2"]
[EndTime "9:36:55 PST"]
[Termination "Ariadna_Atreides won by resignation"]

1. d4 {[%clk 0:02:45.7]} 1... Nf6 {[%clk 0:02:59.5]} 2. Nf3 {[%clk 0:02:45.9]}
2... g6 {[%clk 0:03:00]} 3. c4 {[%clk 0:02:46.2]} 3... Bg7 {[%clk 0:03:01.4]} 4.
Nc3 {[%clk 0:02:47.6]} 4... O-O {[%clk 0:03:03]} 5. e4 {[%clk 0:02:49.1]} 5...
d6 {[%clk 0:03:04.4]} 6. Be2 {[%clk 0:02:50.1]} 6... Na6 {[%clk 0:03:05.7]} 7.
O-O {[%clk 0:02:48.4]} 7... e5 {[%clk 0:03:07.2]} 8. d5 {[%clk 0:02:31.4]} 8...
Nc5 {[%clk 0:03:07.8]} 9. Bg5 {[%clk 0:02:24.8]} 9... a5 {[%clk 0:03:03.3]} 10.
Nd2 {[%clk 0:02:21.6]} 10... h6 {[%clk 0:03:03.5]} 11. Be3 {[%clk 0:02:19.6]}
11... b6 {[%clk 0:02:59.4]} 12. a3 {[%clk 0:02:08.9]} 12... a4 {[%clk 0:02:57]}
13. Bxc5 {[%clk 0:02:02.6]} 13... bxc5 {[%clk 0:02:57.7]} 14. Nxa4 {[%clk
0:02:03]} 14... Nh7 {[%clk 0:02:50.5]} 15. Nc3 {[%clk 0:01:59.8]} 15... f5
{[%clk 0:02:51.4]} 16. f3 {[%clk 0:01:59.6]} 16... h5 {[%clk 0:02:50.4]} 17. b4
{[%clk 0:01:56.9]} 17... cxb4 {[%clk 0:02:48.6]} 18. axb4 {[%clk 0:01:57.3]}
18... Rxa1 {[%clk 0:02:50]} 19. Qxa1 {[%clk 0:01:57.5]} 19... Bh6 {[%clk
0:02:51.5]} 20. Nb3 {[%clk 0:01:54.7]} 20... Be3+ {[%clk 0:02:51.8]} 21. Kh1
{[%clk 0:01:54.8]} 21... Qh4 {[%clk 0:02:48.1]} 22. Qe1 {[%clk 0:01:40.9]} 22...
Qg5 {[%clk 0:02:46.3]} 23. Qg3 {[%clk 0:01:35.9]} 23... Qh6 {[%clk 0:02:44.2]}
24. exf5 {[%clk 0:01:17.8]} 24... Bf4 {[%clk 0:02:41.4]} 25. Qxg6+ {[%clk
0:01:12.5]} 25... Qxg6 {[%clk 0:02:41.6]} 26. fxg6 {[%clk 0:01:13.4]} 26... Nf6
{[%clk 0:02:35.7]} 27. Bd3 {[%clk 0:01:05.3]} 27... Kg7 {[%clk 0:02:34.4]} 28.
Nb5 {[%clk 0:00:47.2]} 28... Ne8 {[%clk 0:02:30.8]} 29. c5 {[%clk 0:00:37.5]}
29... Bd7 {[%clk 0:02:29.1]} 30. c6 {[%clk 0:00:29.7]} 30... Bf5 {[%clk
0:02:22.4]} 31. Bxf5 {[%clk 0:00:23.2]} 31... Rxf5 {[%clk 0:02:22.7]} 32. Nc3
{[%clk 0:00:23.2]} 32... Be3 {[%clk 0:02:20.5]} 33. Ne4 {[%clk 0:00:17]} 33...
Nf6 {[%clk 0:02:18.3]} 34. Nxf6 {[%clk 0:00:11.7]} 34... Rxf6 {[%clk 0:02:19.4]}
35. g3 {[%clk 0:00:09.8]} 35... Kxg6 {[%clk 0:02:19.4]} 36. Kg2 {[%clk
0:00:10.3]} 36... Bb6 {[%clk 0:02:19.5]} 37. Ra1 {[%clk 0:00:10.2]} 37... e4
{[%clk 0:02:18.8]} 38. fxe4 {[%clk 0:00:09.9]} 38... Rf2+ {[%clk 0:02:19.1]} 39.
Kh3 {[%clk 0:00:06.9]} 39... Rb2 {[%clk 0:02:19.8]} 40. Na5 {[%clk 0:00:06.8]}
40... Rxb4 {[%clk 0:02:18.4]} 41. Nb7 {[%clk 0:00:06.3]} 41... Rxe4 {[%clk
0:02:18.2]} 42. Nd8 {[%clk 0:00:05.3]} 42... Rd4 {[%clk 0:02:15.4]} 43. Ne6
{[%clk 0:00:05]} 43... Rxd5 {[%clk 0:02:16.1]} 44. Nf4+ {[%clk 0:00:05.8]} 44...
Kf5 {[%clk 0:02:17]} 45. Nxd5 {[%clk 0:00:06.6]} 45... Bd4 {[%clk 0:02:16.5]}
46. Rb1 {[%clk 0:00:05.3]} 46... Ke5 {[%clk 0:02:17.3]} 47. Nxc7 {[%clk
0:00:05.7]} 47... d5 {[%clk 0:02:18.9]} 48. Ne8 {[%clk 0:00:05.7]} 48... Ke6
{[%clk 0:02:18.1]} 49. c7 {[%clk 0:00:05.6]} 49... Kd7 {[%clk 0:02:19.3]} 50.
Rb8 {[%clk 0:00:06.2]} 1-0

[Event "*** Titled Tuesday Blitz"]
[Site "Chess.com"]
[Date "2020.02.04"]
[Round "3"]
[White "Mikhail_Golubev"]
[Black "bhavesh1810"]
[Result "0-1"]
[WhiteElo "2543"]
[BlackElo "2109"]
[TimeControl "180+2"]
[EndTime "9:37:10 PST"]
[Termination "bhavesh1810 won by resignation"]

1. e4 {[%clk 0:03:01.9]} 1... e5 {[%clk 0:02:58.9]} 2. Nf3 {[%clk 0:03:02.2]}
2... Nc6 {[%clk 0:03:00.3]} 3. Bc4 {[%clk 0:02:59.4]} 3... Bc5 {[%clk
0:03:00.5]} 4. c3 {[%clk 0:02:57.4]} 4... Nf6 {[%clk 0:03:01.7]} 5. d4 {[%clk
0:02:58.6]} 5... exd4 {[%clk 0:03:03.6]} 6. e5 {[%clk 0:02:59.8]} 6... d5 {[%clk
0:03:04]} 7. Bb5 {[%clk 0:02:57.4]} 7... Ne4 {[%clk 0:03:05.3]} 8. cxd4 {[%clk
0:02:56.9]} 8... Bb4+ {[%clk 0:03:07]} 9. Nbd2 {[%clk 0:02:53.9]} 9... Bd7
{[%clk 0:03:04]} 10. Bd3 {[%clk 0:02:35.6]} 10... Bg4 {[%clk 0:03:00.4]} 11. Bb5
{[%clk 0:01:02.4]} 11... O-O {[%clk 0:02:43.5]} 12. Bxc6 {[%clk 0:01:02.6]}
12... bxc6 {[%clk 0:02:45.4]} 13. O-O {[%clk 0:00:56.9]} 13... Bxd2 {[%clk
0:02:45]} 14. Bxd2 {[%clk 0:00:57]} 14... Rb8 {[%clk 0:02:38.4]} 15. Be3 {[%clk
0:00:46.1]} 15... Rxb2 {[%clk 0:02:34.3]} 16. Qc1 {[%clk 0:00:37.4]} 16... Rb6
{[%clk 0:02:25.3]} 17. h3 {[%clk 0:00:37.8]} 17... Be6 {[%clk 0:02:00.2]} 18.
Ng5 {[%clk 0:00:30.3]} 18... Qd7 {[%clk 0:01:55.2]} 19. Nxe6 {[%clk 0:00:21.2]}
19... fxe6 {[%clk 0:01:55.2]} 20. Kh2 {[%clk 0:00:20.3]} 20... Rb4 {[%clk
0:01:26.4]} 21. f3 {[%clk 0:00:18.1]} 21... Rc4 {[%clk 0:01:27.7]} 22. Qa3
{[%clk 0:00:16.5]} 22... Rc3 {[%clk 0:01:16.8]} 23. Qxf8+ {[%clk 0:00:17.2]}
23... Kxf8 {[%clk 0:01:16.1]} 24. fxe4+ {[%clk 0:00:18.7]} 24... Kg8 {[%clk
0:00:58.8]} 25. Rab1 {[%clk 0:00:16.8]} 25... h6 {[%clk 0:00:57.6]} 26. Bd2
{[%clk 0:00:14.2]} 26... Rd3 {[%clk 0:00:58.1]} 27. Bb4 {[%clk 0:00:12.7]} 27...
dxe4 {[%clk 0:00:59.2]} 28. Bc5 {[%clk 0:00:12.9]} 28... Rxd4 {[%clk 0:00:58.7]}
29. h4 {[%clk 0:00:12]} 29... Rd5 {[%clk 0:00:59.1]} 30. Rf8+ {[%clk 0:00:12.3]}
30... Kh7 {[%clk 0:01:00.1]} 31. h5 {[%clk 0:00:13.1]} 31... Rxe5 {[%clk
0:00:58.7]} 32. Rbb8 {[%clk 0:00:09.4]} 32... Rxh5+ {[%clk 0:00:59]} 33. Kg3
{[%clk 0:00:05.1]} 33... Rxc5 {[%clk 0:01:00.4]} 0-1

[Event "*** Titled Tuesday Blitz"]
[Site "Chess.com"]
[Date "2020.02.04"]
[Round "3"]
[White "sergoy"]
[Black "Aygehovit1992"]
[Result "0-1"]
[WhiteElo "2862"]
[BlackElo "2650"]
[TimeControl "180+2"]
[EndTime "9:37:26 PST"]
[Termination "Aygehovit1992 won by resignation"]

1. e4 {[%clk 0:03:00.4]} 1... c5 {[%clk 0:02:35]} 2. Nf3 {[%clk 0:03:00.5]} 2...
d6 {[%clk 0:02:36.1]} 3. Bb5+ {[%clk 0:03:01.1]} 3... Bd7 {[%clk 0:02:35.8]} 4.
Bxd7+ {[%clk 0:03:01.9]} 4... Qxd7 {[%clk 0:02:37.7]} 5. c4 {[%clk 0:03:03.5]}
5... Nf6 {[%clk 0:02:37.5]} 6. Nc3 {[%clk 0:03:04.7]} 6... e5 {[%clk 0:02:37.8]}
7. d3 {[%clk 0:03:05.8]} 7... Be7 {[%clk 0:02:38.5]} 8. Bg5 {[%clk 0:03:06.4]}
8... Nc6 {[%clk 0:02:38.3]} 9. Bxf6 {[%clk 0:03:07.6]} 9... Bxf6 {[%clk
0:02:39.4]} 10. O-O {[%clk 0:03:08.5]} 10... O-O {[%clk 0:02:39.9]} 11. a3
{[%clk 0:03:09.7]} 11... g6 {[%clk 0:02:38.9]} 12. Rb1 {[%clk 0:03:09.5]} 12...
a5 {[%clk 0:02:39.6]} 13. Nd5 {[%clk 0:03:09.5]} 13... Bd8 {[%clk 0:02:40.1]}
14. b4 {[%clk 0:03:09.9]} 14... cxb4 {[%clk 0:02:41.3]} 15. axb4 {[%clk
0:03:11.8]} 15... axb4 {[%clk 0:02:34.2]} 16. Nxb4 {[%clk 0:03:13.7]} 16... Nxb4
{[%clk 0:02:35.2]} 17. Rxb4 {[%clk 0:03:15.6]} 17... Ba5 {[%clk 0:02:31.3]} 18.
Rb5 {[%clk 0:03:16.4]} 18... b6 {[%clk 0:02:32.4]} 19. Qb3 {[%clk 0:03:16.4]}
19... Kg7 {[%clk 0:02:32.3]} 20. Rd5 {[%clk 0:03:15.1]} 20... Qe6 {[%clk
0:02:30.7]} 21. Rb1 {[%clk 0:03:03.9]} 21... f5 {[%clk 0:02:30.6]} 22. Qb2
{[%clk 0:02:41.5]} 22... fxe4 {[%clk 0:02:29.2]} 23. dxe4 {[%clk 0:02:43.4]}
23... Qg4 {[%clk 0:02:26.7]} 24. Qe2 {[%clk 0:02:42.3]} 24... Rf6 {[%clk
0:02:03.1]} 25. h3 {[%clk 0:02:39]} 25... Qc8 {[%clk 0:01:58.9]} 26. Qd3 {[%clk
0:02:38.6]} 26... Qc6 {[%clk 0:01:54.6]} 27. Rd1 {[%clk 0:02:36]} 27... Bb4
{[%clk 0:01:54.9]} 28. Qf1 {[%clk 0:01:52.2]} 28... Bc5 {[%clk 0:01:51.1]} 29.
Ra1 {[%clk 0:01:52.2]} 29... Ra4 {[%clk 0:01:23.5]} 30. Qd1 {[%clk 0:01:41]}
30... Rxc4 {[%clk 0:00:56.3]} 31. Ra7+ {[%clk 0:01:38.2]} 31... Rf7 {[%clk
0:00:56]} 32. Rxf7+ {[%clk 0:01:28.7]} 32... Kxf7 {[%clk 0:00:57.9]} 33. Rxe5
{[%clk 0:01:29]} 33... Rc1 {[%clk 0:00:57.9]} 34. Ng5+ {[%clk 0:01:05.6]} 34...
Kg7 {[%clk 0:00:51.2]} 35. Re7+ {[%clk 0:00:26]} 35... Kf8 {[%clk 0:00:47.4]}
36. Rf7+ {[%clk 0:00:23.3]} 36... Kg8 {[%clk 0:00:47.4]} 0-1

[Event "*** Titled Tuesday Blitz"]
[Site "Chess.com"]
[Date "2020.02.04"]
[Round "3"]
[White "manmanlai1"]
[Black "Taran2004"]
[Result "1-0"]
[WhiteElo "2286"]
[BlackElo "1958"]
[TimeControl "180+2"]
[EndTime "9:37:39 PST"]
[Termination "manmanlai1 won by resignation"]

1. e4 {[%clk 0:03:01.9]} 1... c5 {[%clk 0:02:56.6]} 2. Nf3 {[%clk 0:03:00.8]}
2... d6 {[%clk 0:02:57.7]} 3. c3 {[%clk 0:03:00.9]} 3... Nf6 {[%clk 0:02:57.1]}
4. Be2 {[%clk 0:03:00.9]} 4... Nc6 {[%clk 0:02:56.4]} 5. d4 {[%clk 0:02:59.9]}
5... cxd4 {[%clk 0:02:56.8]} 6. cxd4 {[%clk 0:03:01.8]} 6... Nxe4 {[%clk
0:02:52.8]} 7. d5 {[%clk 0:03:02.9]} 7... Qa5+ {[%clk 0:02:54]} 8. Nc3 {[%clk
0:03:03.2]} 8... Nxc3 {[%clk 0:02:54.8]} 9. bxc3 {[%clk 0:03:04.4]} 9... Nb8
{[%clk 0:02:47.5]} 10. O-O {[%clk 0:02:59.8]} 10... g6 {[%clk 0:02:48.5]} 11.
Qd4 {[%clk 0:03:00.1]} 11... f6 {[%clk 0:02:47.1]} 12. Re1 {[%clk 0:02:59.7]}
12... Qb6 {[%clk 0:02:46.1]} 13. Qh4 {[%clk 0:02:51.2]} 13... Bg7 {[%clk
0:02:45.9]} 14. Bd3 {[%clk 0:02:47.3]} 14... O-O {[%clk 0:02:46.2]} 15. Rxe7
{[%clk 0:02:46.8]} 15... Qd8 {[%clk 0:02:47.2]} 16. Re1 {[%clk 0:02:02.3]} 16...
Re8 {[%clk 0:02:46.5]} 17. Bh6 {[%clk 0:01:54.6]} 17... Nd7 {[%clk 0:02:38.4]}
18. Bxg7 {[%clk 0:01:30]} 18... Kxg7 {[%clk 0:02:37.9]} 19. Rxe8 {[%clk
0:01:26.6]} 19... Qxe8 {[%clk 0:02:38.5]} 20. Re1 {[%clk 0:01:09.2]} 20... Qf7
{[%clk 0:02:33.7]} 21. Qd4 {[%clk 0:00:59.8]} 21... Ne5 {[%clk 0:02:33.2]} 22.
Nd2 {[%clk 0:00:59.5]} 22... Nxd3 {[%clk 0:02:31.1]} 23. Qxd3 {[%clk 0:01:00.3]}
23... Bf5 {[%clk 0:02:32.5]} 24. Qd4 {[%clk 0:00:58.2]} 24... Re8 {[%clk
0:02:31.5]} 25. Rxe8 {[%clk 0:00:56]} 25... Qxe8 {[%clk 0:02:28.5]} 26. g4
{[%clk 0:00:53.2]} 26... Qe1+ {[%clk 0:02:23]} 27. Nf1 {[%clk 0:00:49]} 27...
Bc2 {[%clk 0:02:19.3]} 28. Kg2 {[%clk 0:00:44.9]} 28... Qe4+ {[%clk 0:02:12.2]}
29. f3 {[%clk 0:00:29.8]} 29... Qxd4 {[%clk 0:02:02.9]} 30. cxd4 {[%clk
0:00:31.7]} 30... f5 {[%clk 0:02:00.3]} 31. gxf5 {[%clk 0:00:16.5]} 31... gxf5
{[%clk 0:02:02.2]} 32. Kg3 {[%clk 0:00:16.2]} 32... Kf6 {[%clk 0:02:00.9]} 33.
Kf4 {[%clk 0:00:16.7]} 33... b5 {[%clk 0:01:58.6]} 34. a3 {[%clk 0:00:17.4]}
34... a5 {[%clk 0:01:58.7]} 35. Ne3 {[%clk 0:00:18.6]} 35... Bd3 {[%clk
0:01:59.8]} 36. Nd1 {[%clk 0:00:18.3]} 36... b4 {[%clk 0:01:59.8]} 37. axb4
{[%clk 0:00:19.5]} 37... axb4 {[%clk 0:02:01.7]} 38. Ke3 {[%clk 0:00:20.3]}
38... Bc4 {[%clk 0:02:03]} 39. Nb2 {[%clk 0:00:20.5]} 39... Bxd5 {[%clk
0:02:03.3]} 40. h4 {[%clk 0:00:20.9]} 40... Bf7 {[%clk 0:01:55]} 41. f4 {[%clk
0:00:20.1]} 41... Ke6 {[%clk 0:01:51.9]} 42. Kd3 {[%clk 0:00:20.3]} 42... Kd5
{[%clk 0:01:52.2]} 43. Nd1 {[%clk 0:00:21.7]} 43... b3 {[%clk 0:01:50.2]} 44.
Ne3+ {[%clk 0:00:22.7]} 44... Ke6 {[%clk 0:01:48.8]} 45. d5+ {[%clk 0:00:21]}
45... Kf6 {[%clk 0:01:49.8]} 46. Kc3 {[%clk 0:00:22.5]} 46... Kg6 {[%clk
0:01:47]} 47. Kxb3 {[%clk 0:00:23.5]} 47... Kh5 {[%clk 0:01:48.2]} 48. Kc3
{[%clk 0:00:23.9]} 48... Kxh4 {[%clk 0:01:47.9]} 49. Nxf5+ {[%clk 0:00:25.1]}
49... Kh5 {[%clk 0:01:33.6]} 50. Kd4 {[%clk 0:00:24.6]} 50... Be6 {[%clk
0:01:23.3]} 51. dxe6 {[%clk 0:00:24.1]} 1-0

[Event "*** Titled Tuesday Blitz"]
[Site "Chess.com"]
[Date "2020.02.04"]
[Round "3"]
[White "Kimster98"]
[Black "guna1976"]
[Result "1-0"]
[WhiteElo "2703"]
[BlackElo "2249"]
[TimeControl "180+2"]
[EndTime "9:37:47 PST"]
[Termination "Kimster98 won on time"]

1. Nf3 {[%clk 0:02:59.5]} 1... d5 {[%clk 0:02:59.9]} 2. d4 {[%clk 0:03:00]} 2...
Nf6 {[%clk 0:02:59.4]} 3. c4 {[%clk 0:03:00.9]} 3... c6 {[%clk 0:02:58.9]} 4.
Nc3 {[%clk 0:03:00.5]} 4... e6 {[%clk 0:02:59.2]} 5. g3 {[%clk 0:03:01.6]} 5...
Nbd7 {[%clk 0:02:58.1]} 6. Bg2 {[%clk 0:03:02.8]} 6... b6 {[%clk 0:02:58.5]} 7.
O-O {[%clk 0:03:01.9]} 7... Bb7 {[%clk 0:02:59.1]} 8. b3 {[%clk 0:03:03.1]} 8...
Be7 {[%clk 0:02:54.1]} 9. Bb2 {[%clk 0:03:03.8]} 9... O-O {[%clk 0:02:54.4]} 10.
Nd2 {[%clk 0:02:56.1]} 10... c5 {[%clk 0:02:52.7]} 11. cxd5 {[%clk 0:01:54.2]}
11... exd5 {[%clk 0:02:40.9]} 12. dxc5 {[%clk 0:01:45.2]} 12... bxc5 {[%clk
0:02:40.5]} 13. Nc4 {[%clk 0:01:01]} 13... Nb6 {[%clk 0:02:16.1]} 14. Na5 {[%clk
0:00:59.4]} 14... Qd7 {[%clk 0:02:03.2]} 15. Nxb7 {[%clk 0:00:48.4]} 15... Qxb7
{[%clk 0:02:02.9]} 16. Qc2 {[%clk 0:00:48.3]} 16... Rad8 {[%clk 0:01:55.6]} 17.
Rfd1 {[%clk 0:00:48.5]} 17... Qc8 {[%clk 0:01:32.5]} 18. Rac1 {[%clk 0:00:44.5]}
18... Qa6 {[%clk 0:01:01.5]} 19. a4 {[%clk 0:00:31.9]} 19... c4 {[%clk
0:00:52.9]} 20. bxc4 {[%clk 0:00:20.7]} 20... dxc4 {[%clk 0:00:35.8]} 21. Ra1
{[%clk 0:00:21.7]} 21... Qa5 {[%clk 0:00:30.6]} 22. Nb5 {[%clk 0:00:13.8]} 22...
Rxd1+ {[%clk 0:00:27.5]} 23. Qxd1 {[%clk 0:00:13.8]} 23... Rd8 {[%clk
0:00:26.4]} 24. Qc1 {[%clk 0:00:15]} 24... Nfd5 {[%clk 0:00:16.9]} 25. Nc3
{[%clk 0:00:12.6]} 25... Nxc3 {[%clk 0:00:13.9]} 26. Bxc3 {[%clk 0:00:14.5]}
26... Bb4 {[%clk 0:00:13.4]} 27. Bxb4 {[%clk 0:00:15.5]} 27... Qxb4 {[%clk
0:00:13.3]} 28. a5 {[%clk 0:00:17.1]} 28... Na4 {[%clk 0:00:10.2]} 29. Qe3
{[%clk 0:00:16.6]} 29... Nc5 {[%clk 0:00:07.4]} 30. Rc1 {[%clk 0:00:09.9]} 30...
Nb3 {[%clk 0:00:04.5]} 31. Rb1 {[%clk 0:00:11.3]} 31... Qxa5 {[%clk 0:00:02.1]}
32. Be4 {[%clk 0:00:09.5]} 1-0

[Event "*** Titled Tuesday Blitz"]
[Site "Chess.com"]
[Date "2020.02.04"]
[Round "3"]
[White "Carnivoras"]
[Black "GMSrinath"]
[Result "0-1"]
[WhiteElo "2544"]
[BlackElo "2973"]
[TimeControl "180+2"]
[EndTime "9:37:48 PST"]
[Termination "GMSrinath won by resignation"]

1. d4 {[%clk 0:03:01.9]} 1... Nf6 {[%clk 0:02:59.8]} 2. Nf3 {[%clk 0:03:02.9]}
2... d5 {[%clk 0:03:00.7]} 3. Bf4 {[%clk 0:03:03.4]} 3... c5 {[%clk 0:03:00.5]}
4. c3 {[%clk 0:03:04]} 4... Nc6 {[%clk 0:03:01.7]} 5. e3 {[%clk 0:03:04.8]} 5...
e6 {[%clk 0:03:02.2]} 6. Nbd2 {[%clk 0:03:04.8]} 6... Bd6 {[%clk 0:03:03]} 7.
Bxd6 {[%clk 0:03:04.7]} 7... Qxd6 {[%clk 0:03:04.1]} 8. Bd3 {[%clk 0:03:05.4]}
8... e5 {[%clk 0:03:04.6]} 9. dxe5 {[%clk 0:03:01.7]} 9... Nxe5 {[%clk
0:03:06.5]} 10. Nxe5 {[%clk 0:03:02.7]} 10... Qxe5 {[%clk 0:03:08.4]} 11. O-O
{[%clk 0:03:03.1]} 11... O-O {[%clk 0:03:08.9]} 12. Qc2 {[%clk 0:02:59.5]} 12...
h6 {[%clk 0:03:02.8]} 13. e4 {[%clk 0:02:57.7]} 13... Rd8 {[%clk 0:03:01]} 14.
Nf3 {[%clk 0:02:53.3]} 14... Qh5 {[%clk 0:02:57]} 15. e5 {[%clk 0:02:16.2]}
15... Ne8 {[%clk 0:02:51.9]} 16. Rfe1 {[%clk 0:01:54.7]} 16... Nc7 {[%clk
0:02:51.3]} 17. Be2 {[%clk 0:01:34.2]} 17... Bf5 {[%clk 0:02:50.2]} 18. Qd2
{[%clk 0:01:30.9]} 18... Be4 {[%clk 0:02:35.4]} 19. Qf4 {[%clk 0:01:22]} 19...
Ne6 {[%clk 0:02:34.2]} 20. Qg3 {[%clk 0:01:22.8]} 20... Qf5 {[%clk 0:02:28.6]}
21. Nd2 {[%clk 0:01:17]} 21... Bc2 {[%clk 0:01:46.5]} 22. Rac1 {[%clk
0:01:14.1]} 22... Qg6 {[%clk 0:01:36.9]} 23. f4 {[%clk 0:00:40.9]} 23... d4
{[%clk 0:01:10.3]} 24. cxd4 {[%clk 0:00:35.7]} 24... Nxd4 {[%clk 0:01:12.2]} 25.
Qxg6 {[%clk 0:00:34.2]} 25... Bxg6 {[%clk 0:01:07]} 26. Rxc5 {[%clk 0:00:33.3]}
26... Nc2 {[%clk 0:01:08.3]} 27. Rxc2 {[%clk 0:00:26.7]} 27... Bxc2 {[%clk
0:01:10.2]} 28. Nc4 {[%clk 0:00:26.4]} 28... Bd3 {[%clk 0:01:08.9]} 29. Nd6
{[%clk 0:00:27.4]} 29... Bxe2 {[%clk 0:01:09.6]} 30. Rxe2 {[%clk 0:00:29.2]}
30... Rd7 {[%clk 0:01:11.1]} 31. Kf2 {[%clk 0:00:29]} 31... Rc7 {[%clk
0:01:11.7]} 32. Ke3 {[%clk 0:00:29.6]} 32... Rd8 {[%clk 0:01:11.8]} 33. Kd4
{[%clk 0:00:29.7]} 33... b5 {[%clk 0:01:07.2]} 34. Kd5 {[%clk 0:00:28.1]} 34...
a6 {[%clk 0:01:08.1]} 35. Kd4 {[%clk 0:00:29]} 35... Kf8 {[%clk 0:01:08.5]} 36.
Kd5 {[%clk 0:00:28.5]} 36... Ke7 {[%clk 0:01:08.1]} 37. g3 {[%clk 0:00:26.5]}
37... g6 {[%clk 0:01:07.3]} 38. Ke4 {[%clk 0:00:26.7]} 38... h5 {[%clk
0:01:08.1]} 39. Kd5 {[%clk 0:00:27.5]} 39... Rc1 {[%clk 0:01:06.6]} 40. Ke4
{[%clk 0:00:26.8]} 40... Rd7 {[%clk 0:01:08.1]} 41. f5 {[%clk 0:00:24.3]} 41...
Rdc7 {[%clk 0:01:09.3]} 42. fxg6 {[%clk 0:00:21.6]} 42... fxg6 {[%clk
0:01:11.2]} 43. Rf2 {[%clk 0:00:21.2]} 43... R7c2 {[%clk 0:00:47.7]} 44. Rf7+
{[%clk 0:00:21.7]} 44... Ke6 {[%clk 0:00:49.2]} 45. Rf6+ {[%clk 0:00:22.8]}
45... Kd7 {[%clk 0:00:50.8]} 46. Rxg6 {[%clk 0:00:23.4]} 46... Re1+ {[%clk
0:00:50.4]} 47. Kf5 {[%clk 0:00:23.7]} 47... Rf2+ {[%clk 0:00:50.2]} 0-1

[Event "*** Titled Tuesday Blitz"]
[Site "Chess.com"]
[Date "2020.02.04"]
[Round "3"]
[White "saraswathii"]
[Black "tunadrol"]
[Result "0-1"]
[WhiteElo "2170"]
[BlackElo "2576"]
[TimeControl "180+2"]
[EndTime "9:37:49 PST"]
[Termination "tunadrol won by resignation"]

1. d4 {[%clk 0:03:01.9]} 1... Nf6 {[%clk 0:02:58.8]} 2. Bf4 {[%clk 0:03:02.3]}
2... d5 {[%clk 0:02:57.3]} 3. e3 {[%clk 0:03:03.1]} 3... c5 {[%clk 0:02:57.6]}
4. c3 {[%clk 0:03:03.4]} 4... Nc6 {[%clk 0:02:59.1]} 5. Nf3 {[%clk 0:03:03.4]}
5... Qb6 {[%clk 0:02:59.7]} 6. Qb3 {[%clk 0:03:03.5]} 6... c4 {[%clk 0:03:00.9]}
7. Qc2 {[%clk 0:03:04.3]} 7... Bf5 {[%clk 0:03:01]} 8. Qc1 {[%clk 0:03:05]} 8...
e6 {[%clk 0:03:02]} 9. Nbd2 {[%clk 0:03:05.6]} 9... Be7 {[%clk 0:03:01.9]} 10.
h3 {[%clk 0:03:06.4]} 10... h6 {[%clk 0:03:03.1]} 11. Be2 {[%clk 0:03:07.4]}
11... O-O {[%clk 0:03:04.5]} 12. O-O {[%clk 0:03:08.5]} 12... Rfc8 {[%clk
0:03:03.9]} 13. Re1 {[%clk 0:03:05.9]} 13... Qd8 {[%clk 0:03:03.7]} 14. Nh2
{[%clk 0:03:06.5]} 14... b5 {[%clk 0:03:01.9]} 15. a3 {[%clk 0:03:06.3]} 15...
a5 {[%clk 0:03:02.3]} 16. Bf3 {[%clk 0:03:04.2]} 16... b4 {[%clk 0:02:49.5]} 17.
axb4 {[%clk 0:03:03.3]} 17... axb4 {[%clk 0:02:50.2]} 18. e4 {[%clk 0:03:03.2]}
18... Bg6 {[%clk 0:02:40.7]} 19. exd5 {[%clk 0:02:57.4]} 19... Nxd5 {[%clk
0:02:33.2]} 20. Rxa8 {[%clk 0:02:56.8]} 20... Rxa8 {[%clk 0:02:28.7]} 21. Nxc4
{[%clk 0:02:55.3]} 21... Rc8 {[%clk 0:01:50.1]} 22. Bxd5 {[%clk 0:02:36.6]}
22... exd5 {[%clk 0:01:43.4]} 23. Ne3 {[%clk 0:02:23.7]} 23... bxc3 {[%clk
0:01:40.7]} 24. bxc3 {[%clk 0:02:23.4]} 24... Nb4 {[%clk 0:01:34.3]} 25. cxb4
{[%clk 0:01:59.8]} 25... Rxc1 {[%clk 0:01:33.1]} 26. Rxc1 {[%clk 0:02:01.7]}
26... Bxb4 {[%clk 0:01:29.1]} 27. Nhg4 {[%clk 0:02:02.3]} 27... f6 {[%clk
0:01:13.1]} 28. Rc6 {[%clk 0:01:55.1]} 28... h5 {[%clk 0:01:08.6]} 29. Nh2
{[%clk 0:01:48]} 29... Be4 {[%clk 0:00:48.2]} 30. Nhf1 {[%clk 0:01:31.1]} 30...
h4 {[%clk 0:00:38.3]} 31. Nc2 {[%clk 0:01:14.3]} 31... Ba5 {[%clk 0:00:32.6]}
32. Na3 {[%clk 0:01:01.8]} 32... Qe8 {[%clk 0:00:30.2]} 33. Rc1 {[%clk
0:00:57.4]} 33... Bxg2 {[%clk 0:00:24.7]} 34. Ne3 {[%clk 0:00:53.1]} 34... Be4
{[%clk 0:00:22]} 35. Ng4 {[%clk 0:00:46.3]} 35... Qg6 {[%clk 0:00:21.3]} 36. Kh2
{[%clk 0:00:43.1]} 36... Qf5 {[%clk 0:00:20.2]} 37. Bb8 {[%clk 0:00:32.9]} 37...
Qf3 {[%clk 0:00:17.5]} 38. Ne3 {[%clk 0:00:33.1]} 38... Qxf2+ {[%clk 0:00:16.3]}
0-1